[Event "Alef Super Stars Blitz 2023"]
[Site "Almamsha"]
[Date "2023.12.06"]
[Round "10.2"]
[White "Sjugirov, Sanan"]
[Black "Yu, Yangyi"]
[Result "1-0"]
[ECO "C65"]
[WhiteElo "2703"]
[BlackElo "2714"]
[Annotator "TA"]
[PlyCount "91"]
[EventDate "2023.11.27"]
[EventType "tourn"]
[EventCountry "UAE"]
[SourceTitle "playchess.com"]
[Source "ChessBase"]
[SourceQuality "1"]
[TimeControl "180+2"]

{[%evp 9,91,17,20,16,27,2,10,-7,-9,-8,4,-10,0,-2,0,0,-9,-12,-7,-54,43,0,0,-25,0,0,10,10,10,10,9,-9,-9,-7,0,-77,-10,-25,-20,-93,-16,-85,-83,-80,0,0,0,0,0,0,0,0,0,0,0,0,-15,-33,0,-101,22,0,537,524,1042,685,1008,981,1200,1487,1439,1581,1494,1452,29960,5620,29978,29979,29984,29985,29985,29986,29986,29987]} 1. e4 {[%emt 0:00:01]} e5 {[%emt 0:00:01]} 2. Nf3 {[%emt 0:00:01]} Nc6 {[%emt 0:00:01]} 3. Bb5 {[%emt 0:00:01]} Nf6 {[%emt 0:00:02]} 4. d3 {[%emt 0:00:01]} Bc5 {[%emt 0:00:01]} 5. Bxc6 {[%emt 0:00:02]} dxc6 {[%emt 0:00:01]} 6. O-O {[%emt 0:00:03] C65: Ruy Lopez: Berlin Defence (3...Nf6), unusual lines and 4 0-0 Bc5.} Qe7 {[%emt 0:00:05]} 7. Bg5 {[%emt 0:00:07][%cal Bc1g5,Bg5h4,Bh4g3][%mdl 32]} h6 {[%emt 0:00:25]} 8. Bh4 {[%emt 0:00:01] The position is equal.} Bg4 {[%emt 0:00:01]} 9. Nbd2 {[%emt 0:00:04]} O-O-O {[%emt 0:00:05]} 10. a3 {[%emt 0:00:20] [#]} Bd6 $146 {[%emt 0:00:14]} ({Predecessor:} 10... g5 11. Bg3 Bd6 12. b4 Nh5 13. c4 c5 14. b5 Nf4 15. h3 Bd7 16. Qa4 Kb8 {1-0 Stuhr,F (1737)-Adrian,M (1621) Faxe Dags op 2016 (4)}) 11. Nc4 {[%emt 0:00:07]} g5 {[%emt 0:00:14]} 12. Bg3 {[%emt 0:00:01][%cal Rg3e5]} Nd7 {[%emt 0:00:08]} 13. Ne3 {[%emt 0:00:03]} (13. h3 $5 {[%cal Rh3g4]} Bh5 14. b4 $11) 13... Be6 {[%emt 0:00:02]} 14. d4 {[%emt 0:00:32]} (14. b4 $11) 14... g4 {[%emt 0:00:23]} (14... h5 $15) 15. Nh4 {[%emt 0:00:02]} ({Don't play} 15. Nxe5 Nxe5 16. dxe5 Bxe5 $15) ({Better is} 15. Bh4 $14 f6 16. d5 cxd5 17. exd5 gxf3 18. dxe6 Qxe6 19. Qxf3) 15... exd4 $11 {[%emt 0:00:10]} 16. Qxd4 {[%emt 0:00:01]} Bxg3 {[%emt 0:00:13]} (16... Bc5 $5 {[%cal Rc5d4]} 17. Qg7 Qf6 $11) 17. hxg3 {[%emt 0:00:02]} Qc5 {[%emt 0:00:01]} 18. Qxc5 {[%emt 0:00:16]} Nxc5 {[%emt 0:00:01][%cal Bd7c5,Bc5a4,Ba4c3,Bc3b1][%mdl 32]} 19. f3 {[%emt 0:00:03]} h5 {[%emt 0:00:16]} 20. Rad1 {[%emt 0:00:09]} Na4 {[%emt 0:00:05]} 21. b3 {[%emt 0:00:05]} Nc3 {[%emt 0:00:03]} 22. Rde1 {[%emt 0:00:07]} (22. Rxd8+ $11 Rxd8 23. Nhf5) 22... a5 {[%emt 0:00:04]} (22... b6 $17) 23. Nd1 $1 {[%emt 0:00:28]} Nb1 {[%emt 0:00:19]} 24. a4 {[%emt 0:00:05]} (24. Ne3 $11 {keeps the balance.} Nc3 25. Nd1) 24... b5 {[%emt 0:00:05]} (24... Rd2 $1 $17 {Threatens to win with ...Na3.} 25. Ne3 Nc3) 25. Nf5 {[%emt 0:00:36]} (25. Ne3 $11 Nd2 26. Rf2) 25... Bxf5 {[%emt 0:00:13]} 26. exf5 {[%emt 0:00:01]} Rhe8 {[%emt 0:00:01]} (26... bxa4 $17 {Hoping for ...a3.} 27. bxa4 Nd2) 27. Rxe8 {[%emt 0:00:06]} Rxe8 {[%emt 0:00:01]} 28. fxg4 {[%emt 0:00:09]} hxg4 {[%emt 0:00:04][%mdl 4096] Endgame ...Nd2 would be deadly. KRN-KRN} 29. Nf2 $1 {[%emt 0:00:04][%csl LRb1,LRg4]} Nd2 {[%emt 0:00:22]} 30. Rd1 {[%emt 0:00:02]} Re2 {[%emt 0:00:08]} 31. Nxg4 {[%emt 0:00:04]} Ne4 {[%emt 0:00:03]} 32. Kh2 {[%emt 0:00:11]} Rxc2 {[%emt 0:00:03] With the idea ...Rc3.} 33. Re1 {[%emt 0:00:05]} Nd6 {[%emt 0:00:04]} (33... Nd2 $5 {[%cal Rd2f3]} 34. Re8+ Kd7 35. Nf6+ Kd6 $11) 34. f6 {[%emt 0:00:03]} (34. Nh6 $1 $11 {remains equal.}) 34... Rc3 {[%emt 0:00:03]} (34... bxa4 $1 $17 35. bxa4 Rc4) 35. Ne5 {[%emt 0:00:03]} b4 $2 {[%emt 0:00:02][%mdl 8192]} (35... Ne8 $1 $11) 36. g4 $1 $18 {[%emt 0:00:02][%cal Bg3g4,Bg4g5,Bg5g6][%mdl 32]} ({Not} 36. Rb1 c5 37. g4 c4 38. bxc4 Re3 $15) 36... Rxb3 {[%emt 0:00:04]} 37. g5 $1 {[%emt 0:00:01][%cal Oe5f7] And now Nxf7! would win.} Rb2 {[%emt 0:00:02]} 38. Rf1 {[%emt 0:00:04][%cal Oe5f7] Prevents Rf2. Black must now prevent Nxf7!} ({Inferior is} 38. g6 fxg6 39. Kg3 Rc2 $17) 38... Re2 {[%emt 0:00:04] [#]} 39. Nxf7 $1 {[%emt 0:00:04][%mdl 576] Remove Defender} Nxf7 {[%emt 0:00:01] KRN-KR} 40. g6 {[%emt 0:00:05]} Re8 {[%emt 0:00:03]} 41. gxf7 {[%emt 0:00:00]} Rf8 {[%emt 0:00:00] [#]} 42. g4 $1 {[%emt 0:00:00][%cal Bg2g4,Bg4g5][%mdl 32] Intending g5 and mate.} Rxf7 {[%emt 0:00:02]} 43. g5 {[%emt 0:00:00] White mates.} Rh7+ {[%emt 0:00:04]} 44. Kg3 {[%emt 0:00:00]} Rh5 {[%emt 0:00:03]} 45. Kg4 {[%emt 0:00:01]} Rh2 {[%emt 0:00:01]} 46. f7 {[%emt 0:00:01] Weighted Error Value: White=0.17 (very precise) /Black=0.66} 1-0

[Event "Alef Super Stars Blitz 2023"]
[Site "Almamsha"]
[Date "2023.12.06"]
[Round "11.1"]
[White "Sjugirov, Sanan"]
[Black "Salem, A.R. Saleh"]
[Result "0-1"]
[ECO "C90"]
[WhiteElo "2703"]
[BlackElo "2639"]
[Annotator "TA"]
[PlyCount "86"]
[EventDate "2023.11.27"]
[EventType "tourn"]
[EventCountry "UAE"]
[SourceTitle "playchess.com"]
[Source "ChessBase"]
[SourceQuality "1"]
[TimeControl "180+2"]

{[%evp 25,86,0,15,0,18,3,33,10,49,44,54,0,72,51,41,43,59,33,35,21,38,35,35,35,35,0,0,0,6,0,-10,-116,-66,-110,0,-66,-60,-152,-103,-132,-134,-177,-182,-197,-152,-147,-127,-188,-192,-195,-203,-374,-313,-712,-695,-706,-697,-950,-180,-767,-268,-29985,-29986]} 1. e4 {[%emt 0:00:02]} e5 {[%emt 0:00:01]} 2. Nf3 {[%emt 0:00:00]} Nc6 {[%emt 0:00:00]} 3. Bb5 {[%emt 0:00:01]} a6 {[%emt 0:00:01]} 4. Ba4 {[%emt 0:00:01]} Nf6 {[%emt 0:00:01]} 5. O-O {[%emt 0:00:02]} Be7 {[%emt 0:00:00]} 6. d3 {[%emt 0:00:03]} b5 {[%emt 0:00:01]} 7. Bb3 {[%emt 0:00:01]} d6 {[%emt 0:00:01]} 8. a4 {[%emt 0:00:01]} Bd7 {[%emt 0:00:01]} 9. c3 {[%emt 0:00:08]} O-O {[%emt 0:00:05]} 10. Nbd2 {[%emt 0:00:03][%cal Bb1d2,Bd2f1,Bf1g3][%mdl 32]} Na5 {[%emt 0:00:15]} 11. Bc2 {[%emt 0:00:01]} c5 {[%emt 0:00:03]} 12. Re1 {[%emt 0:00:01]} Re8 {[%emt 0:00:06]} 13. Nf1 {[%emt 0:00:01]} h6 {[%emt 0:00:06] 13...Nc6 is vanishing.} 14. h3 {[%emt 0:00:10] C90: Closed Ruy Lopez with 7...d6: Early deviations.} Bf8 {[%emt 0:00:01]} 15. d4 {[%emt 0:00:10]} b4 {[%emt 0:00:30]} 16. Ng3 {[%emt 0:00:21] White is slightly better.} Qc7 {[%emt 0:00:10]} 17. cxb4 {[%emt 0:00:11]} cxb4 {[%emt 0:00:02] [#]} 18. Bd3 $146 {[%emt 0:00:03]} (18. d5 $14) ({Predecessor:} 18. b3 Rec8 19. Re2 Nc6 20. Bb2 Re8 21. Rc1 Qb6 22. Qd2 a5 23. Bd3 Rac8 24. Bc4 {1-0 Swiercz,D (2649)-Shahade,G (2476) Titled Tuesday intern op 01st Dec blitz 2020 (11)}) 18... Qb7 {[%emt 0:01:18]} (18... exd4 $1 $11 19. b3 (19. Nxd4 d5 $11) 19... Nc6) 19. d5 {[%emt 0:00:42]} Rec8 {[%emt 0:00:09]} 20. Re2 {[%emt 0:00:07]} Be7 {[%emt 0:00:04]} 21. Rc2 {[%emt 0:00:07]} Rxc2 {[%emt 0:00:09]} 22. Qxc2 {[%emt 0:00:01]} Bd8 {[%emt 0:00:06]} 23. Bd2 {[%emt 0:00:15]} Rc8 {[%emt 0:00:01]} 24. Qd1 {[%emt 0:00:01]} Nc4 {[%emt 0:00:02]} 25. Bxc4 {[%emt 0:00:21]} Rxc4 {[%emt 0:00:00]} 26. b3 {[%emt 0:00:01]} Rxe4 {[%emt 0:00:07][%cal Oa6a5]} 27. Nxe4 {[%emt 0:00:03]} Nxe4 {[%emt 0:00:00]} 28. Be1 {[%emt 0:00:07]} (28. a5 $11 {keeps the balance.}) 28... Bb6 {[%emt 0:00:02] Black is much more active.} ({Black should play} 28... a5 $17 29. Rc1 f5) 29. Rc1 {[%emt 0:00:01]} Bc5 {[%emt 0:00:02]} (29... a5 $1 $17 {And now ...Nc5 would win.} 30. Nd2 Nc3) 30. Qd3 {[%emt 0:00:09]} (30. Rc4 $11 f5 31. Kh2) 30... f5 $1 $15 {[%emt 0:00:02]} 31. Nd2 {[%emt 0:00:05]} (31. Nh4 $15) 31... Nf6 {[%emt 0:00:06]} (31... Nc3 $142 32. Nc4 e4) 32. Nc4 {[%emt 0:00:03][%cal Oc4e5] Threatens to win with Nxe5!} e4 {[%emt 0:00:10]} ({Don't do} 32... Qxd5 33. Qxd5+ Nxd5 34. Nxe5 Bxf2+ 35. Kxf2 $16 (35. Bxf2 dxe5 36. Rc5 Be6 $16)) (32... Nxd5 $6 33. Nxe5 Bxf2+ 34. Bxf2 $11) 33. Qd1 {[%emt 0:00:15]} Nxd5 {[%emt 0:00:05]} ({Not} 33... Qxd5 34. Na5 $17) 34. Bd2 {[%emt 0:00:12]} Be6 {[%emt 0:00:01]} 35. Qh5 {[%emt 0:00:11]} Kh7 {[%emt 0:00:04]} 36. Qe8 {[%emt 0:00:04] [#]} (36. a5 $17) 36... Bf7 $1 $19 {[%emt 0:00:06]} 37. Qf8 {[%emt 0:00:01] [#]} Qd7 {[%emt 0:00:06]} 38. Rd1 $2 {[%emt 0:00:03]} (38. Kh2 {was worth a try.}) 38... Qe6 {[%emt 0:00:06]} 39. Be3 $2 {[%emt 0:00:04]} (39. Bc1 Qg6 40. Kh1) 39... Nxe3 {[%emt 0:00:04]} 40. fxe3 {[%emt 0:00:01][%cal Rd1d6]} f4 {[%emt 0:00:01]} 41. Rf1 {[%emt 0:00:05]} f3 {[%emt 0:00:04]} (41... Bxe3+ $2 42. Nxe3 f3 43. gxf3 $18) (41... fxe3 {( -> ...e2+)} 42. Rxf7 e2+ 43. Kh2 Qg6 44. Rxg7+ Qxg7 45. Qf5+ Qg6 46. Qd7+ Kh8) 42. Rf2 {[%emt 0:00:01]} (42. gxf3 exf3 43. Rxf3 Qg6+ 44. Kh2 Qc2+ 45. Kg3) 42... Qg6 $2 {[%emt 0:00:01]} (42... Qf6 {Strongly threatening ...Bxc4.} 43. Rb2 Bxc4 44. Qxf6 Bxe3+ 45. Kh1 gxf6 46. gxf3 Bd4) 43. Nd2 {[%emt 0:00:05]} (43. Ne5 $19 Qf5 44. Nxf7 Bxe3 45. Qh8+ Kg6 46. Qe8 (46. Nxd6 Bxf2+ 47. Kxf2 Qc5+ 48. Kf1 Qc1+ 49. Kf2 Qd2+ 50. Kg3 Qg5+ 51. Kf2 Qd2+ 52. Kg3 Qxd6+ 53. Kf2 Qd2+ 54. Kg3 Qxg2+ 55. Kf4 f2 56. Ke3 Qf3+ 57. Kd4 Qd3+ 58. Kc5 f1=Q 59. Qe8+ Kh7 60. Qe7 e3 61. Qe6 e2 62. h4 e1=Q 63. Qxe1 Qf8+) 46... Bxf2+ 47. Kxf2 fxg2+ 48. Kxg2 Qf3+ 49. Kg1 Qg3+ 50. Kh1 Qxh3+ 51. Kg1 Qg4+ 52. Kf1 Qf3+ 53. Ke1 Qe3+ 54. Kf1 Qf4+ 55. Ke2 Qxf7 56. Qxe4+ Qf5 57. Qxb4) 43... Bxe3 {[%emt 0:00:01] Weighted Error Value: White=0.92/Black=0.55} 0-1

[Event "Alef Super Stars Blitz 2023"]
[Site "Almamsha"]
[Date "2023.12.06"]
[Round "11.2"]
[White "Yu, Yangyi"]
[Black "Nihal Sarin"]
[Result "1/2-1/2"]
[ECO "B91"]
[WhiteElo "2714"]
[BlackElo "2688"]
[Annotator "TA"]
[PlyCount "85"]
[EventDate "2023.11.27"]
[EventType "tourn"]
[EventCountry "UAE"]
[SourceTitle "playchess.com"]
[Source "ChessBase"]
[SourceQuality "1"]
[TimeControl "180+2"]

{[%evp 17,85,9,16,-7,0,0,0,0,0,0,0,0,0,0,-10,-2,-6,-33,-33,-33,-30,-60,-37,-63,-58,-72,-43,-85,-40,-70,-4,-28,0,0,0,0,0,0,0,0,0,0,0,0,0,-6,-6,-3,0,0,0,0,0,0,0,0,0,0,0,0,0,0,0,0,0,0,0,0,0,0]} 1. e4 {[%emt 0:00:00]} c5 {[%emt 0:00:04]} 2. Nf3 {[%emt 0:00:01]} d6 {[%emt 0:00:00]} 3. d4 {[%emt 0:00:01]} cxd4 {[%emt 0:00:01]} 4. Nxd4 {[%emt 0:00:00]} Nf6 {[%emt 0:00:01]} 5. Nc3 {[%emt 0:00:01]} a6 {[%emt 0:00:00]} 6. g3 {[%emt 0:00:01]} e5 {[%emt 0:00:04]} 7. Nb3 {[%emt 0:00:01]} Be7 {[%emt 0:00:02]} 8. Bg2 {[%emt 0:00:01]} O-O {[%emt 0:00:02]} 9. O-O {[%emt 0:00:01]} b5 {[%emt 0:00:22][%cal Bb7b5,Bb5b4][%mdl 32]} 10. Be3 {[%emt 0:00:02] B91: Sicilian Najdorf: 6 g3.} Bb7 {[%emt 0:00:11]} 11. a4 {[%emt 0:00:02]} b4 $1 {[%emt 0:00:05]} 12. Nd5 {[%emt 0:00:01]} Nxd5 {[%emt 0:00:01]} 13. exd5 {[%emt 0:00:01]} a5 {[%emt 0:00:01] [#]} 14. c3 $146 {[%emt 0:00:21]} ({Predecessor:} 14. h4 f5 15. f4 Nd7 16. fxe5 Nxe5 17. Nd4 Ng4 18. Bf4 Qb6 19. Kh1 Bf6 20. Nxf5 {0-1 Abdumalik,Z (2472)-Bjerre,J (2542) Gelfand Challenge rapid 2021 (13)}) 14... bxc3 {[%emt 0:00:08]} 15. bxc3 {[%emt 0:00:01]} Ba6 {[%emt 0:00:02] Prevents c4} 16. Re1 {[%emt 0:00:02]} Nd7 {[%emt 0:00:00]} 17. Bf1 {[%emt 0:00:19]} Bxf1 {[%emt 0:00:03]} 18. Rxf1 {[%emt 0:00:01]} f5 {[%emt 0:00:17]} 19. f3 {[%emt 0:00:44]} f4 {[%emt 0:00:02]} 20. Bf2 {[%emt 0:00:02]} fxg3 {[%emt 0:00:03]} 21. hxg3 {[%emt 0:00:00]} Nf6 {[%emt 0:00:15]} 22. Qd3 {[%emt 0:00:14]} Qd7 {[%emt 0:00:20]} 23. Nd2 {[%emt 0:00:03]} h5 {[%emt 0:00:25]} (23... Qh3 $15 24. Rfe1 h5) 24. Kg2 $11 {[%emt 0:00:09]} Rab8 {[%emt 0:00:05][%cal Oh5h4]} (24... h4 {seems wilder.} 25. c4 Rab8 26. Qg6 Rb2) 25. Rfb1 {[%emt 0:00:18] The position is equal.} (25. Nc4 h4 26. Ra2 hxg3 27. Bxg3 Nh5 $17) 25... Rxb1 {[%emt 0:00:06]} 26. Rxb1 {[%emt 0:00:13]} Qxa4 {[%emt 0:00:02][%cal Oh5h4]} 27. Rb7 {[%emt 0:00:01]} Rf7 {[%emt 0:00:03]} 28. Qf5 {[%emt 0:00:41]} ({But not} 28. Qg6 h4 29. Ne4 (29. gxh4 Qf4 $17) 29... Nxe4 30. Qxe4 (30. fxe4 $2 {too greedy.} Qc2 $19) 30... Qxe4 31. fxe4 Bg5 $17) 28... Qe8 {[%emt 0:00:44]} 29. Qe6 {[%emt 0:00:10]} Bf8 {[%emt 0:00:01] [#] ...Qxe6 is the strong threat.} 30. Qxe8 {[%emt 0:00:08]} Nxe8 {[%emt 0:00:01]} 31. Rb8 {[%emt 0:00:01]} Nf6 {[%emt 0:00:04]} 32. c4 {[%emt 0:00:03]} a4 {[%emt 0:00:18]} 33. Ra8 {[%emt 0:00:07]} Rb7 {[%emt 0:00:01]} 34. Rxa4 {[%emt 0:00:19]} Rb2 {[%emt 0:00:01]} 35. Ne4 {[%emt 0:00:00]} Nxe4 {[%emt 0:00:00]} 36. fxe4 {[%emt 0:00:00][%mdl 4096] Endgame KRB-KRB} Rc2 {[%emt 0:00:05]} 37. Kf1 {[%emt 0:00:00]} Be7 {[%emt 0:00:08]} 38. Be3 {[%emt 0:00:01]} Kf7 {[%emt 0:00:02]} 39. Ra7 {[%emt 0:00:03]} Ke8 {[%emt 0:00:01]} (39... Rxc4 $2 40. Bg5 $18) 40. Ra8+ {[%emt 0:00:01]} Kf7 {[%emt 0:00:01]} 41. Ra7 {[%emt 0:00:00]} Ke8 {[%emt 0:00:05]} (41... Rxc4 $2 42. Bg5 $18) 42. Ra8+ {[%emt 0:00:01]} Kf7 {[%emt 0:00:01]} 43. Ra7 {[%emt 0:00:01] Weighted Error Value: White=0.06 (flawless) /Black=0.06 (flawless)} 1/2-1/2

[Event "Alef Super Stars Blitz 2023"]
[Site "Almamsha"]
[Date "2023.12.06"]
[Round "12.1"]
[White "Salem, A.R. Saleh"]
[Black "Yu, Yangyi"]
[Result "1-0"]
[ECO "E05"]
[WhiteElo "2639"]
[BlackElo "2714"]
[Annotator "TA"]
[PlyCount "81"]
[EventDate "2023.11.27"]
[EventType "tourn"]
[EventCountry "UAE"]
[SourceTitle "playchess.com"]
[Source "ChessBase"]
[SourceQuality "1"]
[TimeControl "180+2"]

{[%evp 18,81,25,14,23,9,8,8,30,13,63,47,49,50,63,56,65,73,75,20,68,58,108,107,114,104,114,109,128,77,586,590,611,501,626,116,625,608,617,610,548,440,432,432,668,642,602,595,592,560,12837,12837,12837,12838,12838,12839,12839,12839,12841,12841,12841,12841,12841,12842,12842,12843]} 1. d4 {[%emt 0:00:00]} Nf6 {[%emt 0:00:00]} 2. c4 {[%emt 0:00:00]} e6 {[%emt 0:00:00]} 3. Nf3 {[%emt 0:00:00]} d5 {[%emt 0:00:01]} 4. g3 {[%emt 0:00:01]} Be7 {[%emt 0:00:01]} 5. Bg2 {[%emt 0:00:01]} O-O {[%emt 0:00:01]} 6. O-O {[%emt 0:00:01]} dxc4 {[%emt 0:00:01]} 7. Qc2 {[%emt 0:00:00]} a6 {[%emt 0:00:00]} 8. a4 {[%emt 0:00:01]} Bd7 {[%emt 0:00:01]} 9. Qxc4 {[%emt 0:00:01]} Bc6 {[%emt 0:00:02]} 10. Bf4 {[%emt 0:00:00]} Bd6 {[%emt 0:00:11] E05: Open Catalan: 5 Nf3 Be7.} 11. Qc1 {[%emt 0:00:05]} Nbd7 {[%emt 0:00:03]} 12. Re1 {[%emt 0:00:04][%cal Bf1e1,Be1e2,Be2d2][%mdl 32]} Rc8 {[%emt 0:00:39] The position is equal.} 13. Nc3 {[%emt 0:00:10]} Ne4 {[%emt 0:00:04] [#]} (13... Bxf3 $11 14. Bxf3 Bxf4 15. Qxf4 c6) 14. Ne5 $146 {[%emt 0:00:16]} ({Predecessor:} 14. h4 Nxc3 15. bxc3 Be4 16. Qe3 Bd5 17. Qd2 Nf6 18. Bg5 Ne4 19. Qc2 Nxg5 20. Nxg5 {½-½ Le,Q (2709)-Esipenko,A (2682) Speed Chess Super Swiss blitz 2020 (9)}) 14... Bxe5 {[%emt 0:00:07]} 15. dxe5 {[%emt 0:00:06]} Nxc3 {[%emt 0:00:19]} 16. Bxc6 {[%emt 0:00:01]} Nxe2+ {[%emt 0:00:06]} 17. Rxe2 {[%emt 0:00:01]} bxc6 {[%emt 0:00:01] Black is weak on the dark squares} 18. a5 {[%emt 0:00:03] Against Nb6} ({White should try} 18. Rd2 $16 {Strongly threatening Qd1.} g5 19. Qxc6 Nxe5 20. Qc3) 18... c5 {[%emt 0:00:23]} (18... Nb8 $11) 19. Qc4 {[%emt 0:00:46][%mdl 1024] White has compensation.} Ra8 {[%emt 0:00:11]} (19... h6 $14) 20. Rd2 $16 {[%emt 0:00:25]} Qe7 {[%emt 0:00:08]} 21. Rad1 {[%emt 0:01:42]} Rfd8 {[%emt 0:00:10]} 22. h4 $1 {[%emt 0:00:00]} h6 {[%emt 0:00:01] [#] Repels Bg5} 23. Qe2 {[%emt 0:00:00] White has more active pieces.} (23. h5 $142 $1) 23... Kf8 $2 {[%emt 0:00:10][%mdl 8192]} (23... Nf8 $16) 24. Qe4 $18 {[%emt 0:00:00]} Rac8 {[%emt 0:00:15]} 25. Qh7 {[%emt 0:00:00][%cal Rh7h8]} f5 {[%emt 0:00:18]} 26. Qg6 $2 {[%emt 0:00:00]} (26. h5 $18) 26... Qe8 $2 {[%emt 0:00:09][%mdl 8192]} (26... Nb8 $16) 27. Qh7 {[%emt 0:00:00][%cal Of4h6] And now Bxh6! would win. White is clearly winning.} Qe7 {[%emt 0:00:11]} 28. h5 {[%emt 0:00:00] Be3 is the strong threat.} c4 {[%emt 0:00:06]} 29. Kh2 {[%emt 0:00:00]} Qf7 {[%emt 0:00:03]} 30. Kg2 {[%emt 0:00:08]} Ke8 {[%emt 0:00:14] [#]} (30... Rb8 $142 31. Rxd7 Rxd7 32. Rxd7 Qxd7 33. Qh8+ {[%mdl 64] Skewer} Kf7 34. Qxb8 Qd5+ 35. Kh2 Qc5) 31. Bxh6 $1 {[%emt 0:00:07][%mdl 512]} gxh6 {[%emt 0:00:04]} 32. Qxf7+ {[%emt 0:00:02][%mdl 64] Remove Defender} Kxf7 {[%emt 0:00:01]} 33. Rxd7+ {[%emt 0:00:01]} Ke8 {[%emt 0:00:04] [#]} 34. Rxd8+ Rxd8 {[%emt 0:00:01]} 35. Rxd8+ {[%emt 0:00:05]} Kxd8 {[%emt 0:00:00][%mdl 4096] Endgame KP-KP} 36. Kf3 {[%emt 0:00:03]} Kd7 {[%emt 0:00:01]} 37. Ke3 {[%emt 0:00:01] Threatening mate with Kd4.} c5 {[%emt 0:00:05]} 38. f3 {[%emt 0:00:02][%cal Bf2f3,Bf3g4][%mdl 32]} Kc6 {[%emt 0:00:00]} 39. g4 {[%emt 0:00:02][%cal Og4g5] White threatens g5! and mate.} Kd5 {[%emt 0:00:04]} 40. Kf4 {[%emt 0:00:01]} fxg4 {[%emt 0:00:02]} 41. fxg4 {[%emt 0:00:01] Weighted Error Value: White=0.37/Black=0.65} 1-0

[Event "Alef Super Stars Blitz 2023"]
[Site "Almamsha"]
[Date "2023.12.06"]
[Round "12.2"]
[White "Nihal Sarin"]
[Black "Sjugirov, Sanan"]
[Result "1/2-1/2"]
[ECO "B30"]
[WhiteElo "2688"]
[BlackElo "2703"]
[Annotator "TA"]
[PlyCount "86"]
[EventDate "2023.11.27"]
[EventType "tourn"]
[EventCountry "UAE"]
[SourceTitle "playchess.com"]
[Source "ChessBase"]
[SourceQuality "1"]
[TimeControl "180+2"]

{[%evp 11,86,28,29,26,35,25,14,4,3,-4,9,5,8,-2,12,2,12,-11,-14,-10,-15,-6,0,-7,0,0,31,0,0,0,15,0,156,144,142,145,146,141,225,223,205,206,226,214,204,210,216,204,234,209,219,178,170,171,219,193,189,8,8,8,8,8,8,8,8,0,8,8,8,0,0,0,8,0,0,0,8]} 1. e4 {[%emt 0:00:03]} c5 {[%emt 0:00:01]} 2. Nf3 {[%emt 0:00:02]} Nc6 {[%emt 0:00:00]} 3. Bb5 {[%emt 0:00:01]} e6 {[%emt 0:00:01]} 4. O-O {[%emt 0:00:04]} Nge7 {[%emt 0:00:01]} 5. d4 {[%emt 0:00:02]} cxd4 {[%emt 0:00:01]} 6. Nxd4 {[%emt 0:00:01]} Qb6 {[%emt 0:00:01] 6...Ng6 is the fancy move.} 7. Nxc6 {[%emt 0:00:04] B30: Sicilian: 2...Nc6 3 Bb5, lines without ...g6.} bxc6 {[%emt 0:00:01]} 8. Bd3 {[%emt 0:00:03]} Ng6 {[%emt 0:00:01]} 9. Nd2 {[%emt 0:00:02]} Be7 {[%emt 0:00:15]} 10. Nf3 {[%emt 0:00:11]} Qc7 {[%emt 0:00:25]} 11. Re1 {[%emt 0:00:08] [#]} e5 $146 {[%emt 0:00:21]} ({Predecessor:} 11... Bf6 12. Qe2 d6 13. Rb1 O-O 14. b3 Rb8 15. a4 Bc3 16. Rd1 Rd8 17. h3 d5 {½-½ Ozen,D (2411)-Quparadze,G (2509) Marmaris Physkos 2018 (1)}) 12. c4 {[%emt 0:00:31]} d6 {[%emt 0:00:06]} 13. b3 {[%emt 0:00:02]} O-O {[%emt 0:00:02]} 14. g3 {[%emt 0:00:01]} Bg4 {[%emt 0:00:04]} 15. Be2 {[%emt 0:00:01]} f5 {[%emt 0:00:11]} 16. exf5 {[%emt 0:00:07]} Bxf5 {[%emt 0:00:01]} (16... Rxf5 {looks sharper.} 17. c5 d5 18. Nxe5 Bxe2 19. Nxg6 Bxd1 20. Nxe7+ Kh8) 17. Be3 {[%emt 0:00:28]} Rf7 {[%emt 0:00:06]} (17... Bh3 {is more complex.} 18. Ng5 Bxg5 19. Bxg5 Qd7) 18. h4 {[%emt 0:00:29]} h6 {[%emt 0:00:04]} 19. Rc1 {[%emt 0:00:14]} a5 {[%emt 0:00:39]} 20. Nh2 {[%emt 0:00:17]} Qd7 {[%emt 0:00:12]} 21. Bg4 {[%emt 0:00:02]} d5 $2 {[%emt 0:00:13]} (21... Bxg4 $11 22. Qxg4 Qxg4 23. Nxg4 h5) 22. cxd5 $16 {[%emt 0:00:04]} cxd5 {[%emt 0:00:01]} 23. Bxf5 {[%emt 0:00:25]} Rxf5 {[%emt 0:00:01] [#]} 24. h5 $1 {[%emt 0:00:01]} Nf8 {[%emt 0:00:02] [#]} (24... Bb4 $16) 25. Rc7 $3 $18 {[%emt 0:00:01][%mdl 576] Deflection} Qxc7 {[%emt 0:00:24]} 26. Qxd5+ {[%emt 0:00:02]} Rf7 {[%emt 0:00:01]} 27. Qxa8 {[%emt 0:00:01]} Bb4 {[%emt 0:00:00]} 28. Rc1 {[%emt 0:00:05]} Qd7 {[%emt 0:00:01]} 29. Kg2 {[%emt 0:00:07]} ({Don't do} 29. Nf3 Qf5) 29... Qf5 {[%emt 0:00:02]} 30. Qf3 {[%emt 0:00:08]} Qd3 {[%emt 0:00:00]} 31. Qg4 {[%emt 0:00:02]} Qd5+ {[%emt 0:00:03]} 32. Kg1 {[%emt 0:00:04]} Ne6 {[%emt 0:00:06]} (32... Rf6 $142 33. Rc8 (33. Rc7 Ne6 $16) 33... Kh7) 33. Bxh6 {[%emt 0:00:08]} Bc5 {[%emt 0:00:11] [#]} 34. Be3 {[%emt 0:00:04]} (34. Rf1 $1 $18) 34... Bxe3 $11 {[%emt 0:00:01] The position is equal.} 35. fxe3 {[%emt 0:00:00] aiming for Rd1.} Qd2 {[%emt 0:00:04][%csl LRa2,LRc1,LRe3]} 36. Rf1 {[%emt 0:00:04]} Qxe3+ {[%emt 0:00:02]} 37. Kh1 {[%emt 0:00:02]} (37. Kg2 {keeps more tension.} Qd2+ 38. Kh1 Qd5+ 39. Kg1) 37... Ng5 {[%emt 0:00:26]} 38. Rxf7 {[%emt 0:00:02]} Nxf7 {[%emt 0:00:01] KQN-KQN} 39. Qc8+ {[%emt 0:00:01]} Kh7 {[%emt 0:00:01]} 40. Qf5+ {[%emt 0:00:01]} Kg8 {[%emt 0:00:00]} 41. Qc8+ {[%emt 0:00:01]} Kh7 {[%emt 0:00:01]} 42. Qf5+ {[%emt 0:00:01]} Kg8 {[%emt 0:00:00]} 43. Qc8+ {[%emt 0:00:08]} Kh7 {[%emt 0:00:01] Black escapes into a draw.   Weighted Error Value: White=0.15 (very precise) /Black=0.19 (very precise)} 1/2-1/2